fUST/lending_fUST_20250901
["ID","MTS","AMOUNT","RATE_DAILY","PERIOD"]
[382719048,1756719043278,-966.2,0.00013698,2]
[382719049,1756719043287,-4215.73,0.00013698,2]
[382719050,1756719043296,-552.86,0.00013698,2]
[382719051,1756719043306,-713.55,0.00013698,2]
[382719052,1756719043315,-1385.75878,0.00013699,2]
[382719053,1756719043324,-1772.10656559,0.00013742,2]
[382719054,1756719043334,-198.0,0.00013899,2]
[382719055,1756719043343,-186.68280138,0.00013899,2]
[382719056,1756719043352,-1408.79099873,0.00013915,2]
[382719057,1756719043363,-1244.14627389,0.00013968,2]
[382719058,1756719043374,-480.0,0.00013972,2]
[382719059,1756719043384,-445.43683791,0.00013972,2]
[382719060,1756719043393,-480.0,0.00013972,2]
[382719061,1756719043402,-480.0,0.00013972,2]
[382719062,1756719043414,-480.0,0.00013972,2]
[382719063,1756719043424,-480.0,0.00013972,2]
[382719064,1756719043434,-480.0,0.00013972,2]
[382719065,1756719043446,-480.0,0.00013972,2]
[382719066,1756719043455,-250.3699281,0.00013972,2]
[382719067,1756719043464,-480.0,0.00013972,2]
[382719068,1756719043473,-480.0,0.00013972,2]
[382719069,1756719043483,-795.18,0.00013972,2]
[382719070,1756719043492,-480.0,0.00013972,2]
[382719071,1756719043501,-400.0,0.00013972,2]
[382719072,1756719043511,-480.0,0.00013972,2]
[382719073,1756719043520,-480.0,0.00013972,2]
[382719074,1756719043530,-480.0,0.00013972,2]
[382719075,1756719043539,-222.62406368,0.00013972,2]
[382719076,1756719043549,-480.0,0.00013972,2]
[382719077,1756719043558,-480.0,0.00013972,2]
[382719078,1756719043568,-833.27,0.00013972,2]
[382719079,1756719043578,-480.0,0.00013972,2]
[382719080,1756719043588,-443.39357532,0.00013972,2]
[382719081,1756719043597,-480.0,0.00013972,2]
[382719082,1756719043607,-480.0,0.00013972,2]
[382719083,1756719043616,-481.4279086,0.00013972,2]
[382719084,1756719043626,-480.0,0.00013972,2]
[382719085,1756719043635,-203.01101397,0.00013972,2]
[382719086,1756719043645,-480.0,0.00013972,2]
[382719087,1756719043654,-480.0,0.00013972,2]
[382719088,1756719043664,-480.0,0.00013972,2]
[382719089,1756719043674,-480.0,0.00013972,2]
[382719090,1756719043683,-368.00354687,0.00013972,2]
[382719091,1756719043693,-480.0,0.00013972,2]
[382719092,1756719043702,-480.0,0.00013972,2]
[382719093,1756719043712,-480.0,0.00013972,2]
[382719095,1756719043721,-480.0,0.00013972,2]
[382719096,1756719043731,-480.0,0.00013972,2]
[382719098,1756719043740,-480.0,0.00013972,2]
[382719100,1756719043749,-488.76753745,0.00013972,2]
[382719102,1756719043759,-480.0,0.00013972,2]
[382719104,1756719043768,-437.10896823,0.00013972,2]
[382719105,1756719043778,-480.0,0.00013972,2]
[382719106,1756719043787,-789.77,0.00013972,2]
[382719107,1756719043797,-480.0,0.00013972,2]
[382719108,1756719043806,-480.0,0.00013972,2]
[382719109,1756719043815,-480.0,0.00013972,2]
[382719110,1756719043825,-480.0,0.00013972,2]
[382719111,1756719043834,-480.0,0.00013972,2]
[382719112,1756719043844,-858.29,0.00013972,2]
[382719113,1756719043853,-481.52879775,0.00013972,2]
[382719114,1756719043863,-879.79,0.00013972,2]
[382719115,1756719043872,-480.0,0.00013972,2]
[382719116,1756719043881,-480.0,0.00013972,2]
[382719117,1756719043891,-480.0,0.00013972,2]
[382719118,1756719043900,-480.0,0.00013972,2]
[382719119,1756719043909,-480.0,0.00013972,2]
[382719120,1756719043920,-550.41954453,0.00013972,2]
[382719121,1756719043929,-711.9,0.00013972,2]
[382719122,1756719043939,-480.0,0.00013972,2]
[382719123,1756719043948,-480.0,0.00013972,2]
[382719124,1756719043958,-568.51,0.00013972,2]
[382719125,1756719043968,-480.0,0.00013972,2]
[382719126,1756719043977,-480.0,0.00013972,2]
[382719127,1756719043986,-763.81,0.00013972,2]
[382719128,1756719043996,-480.0,0.00013972,2]
[382719129,1756719044006,-480.0,0.00013972,2]
[382719130,1756719044015,-480.0,0.00013972,2]
[382719131,1756719044025,-480.0,0.00013972,2]
[382719132,1756719044035,-613.69,0.00013972,2]
[382719133,1756719044044,-480.0,0.00013972,2]
[382719134,1756719044054,-700.7,0.00013972,2]
[382719135,1756719044063,-480.0,0.00013972,2]
[382719136,1756719044072,-480.0,0.00013972,2]
[382719137,1756719044082,-480.0,0.00013972,2]
[382719138,1756719044091,-764.0,0.00013972,2]
[382719139,1756719044100,-730.48,0.00013972,2]
[382719140,1756719044110,-480.0,0.00013972,2]
[382719141,1756719044119,-480.0,0.00013972,2]
[382719142,1756719044129,-480.0,0.00013972,2]
[382719143,1756719044138,-480.0,0.00013972,2]
[382719144,1756719044147,-480.0,0.00013972,2]
[382719145,1756719044156,-480.0,0.00013972,2]
[382719146,1756719044167,-857.62,0.00013972,2]
[382719147,1756719044176,-480.0,0.00013972,2]
[382719148,1756719044185,-190.65818524,0.00013972,2]
[382719149,1756719044195,-480.0,0.00013972,2]
[382719150,1756719044205,-480.0,0.00013972,2]
[382719151,1756719044215,-480.0,0.00013972,2]
[382719152,1756719044225,-480.0,0.00013972,2]
[382719153,1756719044234,-480.0,0.00013972,2]
[382719154,1756719044243,-480.0,0.00013972,2]
[382719155,1756719044253,-480.0,0.00013972,2]
[382719156,1756719044262,-480.0,0.00013972,2]
[382719157,1756719044272,-514.67,0.00013972,2]
[382719158,1756719044281,-480.0,0.00013972,2]
[382719159,1756719044291,-480.0,0.00013972,2]
[382719160,1756719044300,-480.0,0.00013972,2]
[382719161,1756719044310,-480.0,0.00013972,2]
[382719162,1756719044319,-734.2,0.00013972,2]
[382719163,1756719044328,-480.0,0.00013972,2]
[382719164,1756719044337,-480.0,0.00013972,2]
[382719165,1756719044347,-483.77,0.00013972,2]
[382719166,1756719044356,-798.99,0.00013972,2]
[382719167,1756719044368,-480.0,0.00013972,2]
[382719168,1756719044378,-480.0,0.00013972,2]
[382719169,1756719044388,-480.0,0.00013972,2]
[382719170,1756719044397,-480.0,0.00013972,2]
[382719171,1756719044406,-480.0,0.00013972,2]
[382719172,1756719044417,-480.0,0.00013972,2]
[382719173,1756719044427,-480.0,0.00013972,2]
[382719174,1756719044437,-486.18,0.00013972,2]
[382719175,1756719044446,-480.0,0.00013972,2]
[382719176,1756719044456,-765.0,0.00013972,2]
[382719177,1756719044466,-480.0,0.00013972,2]
[382719178,1756719044475,-480.0,0.00013972,2]
[382719179,1756719044484,-670.38,0.00013972,2]
[382719180,1756719044493,-731.06,0.00013972,2]
[382719181,1756719044503,-480.0,0.00013972,2]
[382719182,1756719044512,-736.62,0.00013972,2]
[382719183,1756719044521,-569.73,0.00013972,2]
[382719184,1756719044531,-480.0,0.00013972,2]
[382719185,1756719044541,-480.0,0.00013972,2]
[382719186,1756719044550,-480.0,0.00013972,2]
[382719187,1756719044560,-969.25,0.00013972,2]
[382719188,1756719044570,-480.0,0.00013972,2]
[382719189,1756719044579,-647.48,0.00013972,2]
[382719190,1756719044588,-762.24,0.00013972,2]
[382719191,1756719044597,-480.0,0.00013972,2]
[382719192,1756719044607,-480.0,0.00013972,2]
[382719193,1756719044616,-480.0,0.00013972,2]
[382719194,1756719044625,-998.76,0.00013972,2]
[382719195,1756719044634,-480.0,0.00013972,2]
[382719196,1756719044644,-480.0,0.00013972,2]
[382719197,1756719044653,-480.0,0.00013972,2]
[382719198,1756719044662,-480.0,0.00013972,2]
[382719199,1756719044671,-281.95276499,0.00013972,2]
[382719200,1756719044681,-480.0,0.00013972,2]
[382719201,1756719044690,-480.0,0.00013972,2]
[382719202,1756719044699,-362.87778078,0.00013972,2]
[382719203,1756719044709,-480.0,0.00013972,2]
[382719204,1756719044718,-480.0,0.00013972,2]
[382719205,1756719044728,-480.0,0.00013972,2]
[382719206,1756719044737,-480.0,0.00013972,2]
[382719207,1756719044746,-480.0,0.00013972,2]
[382719208,1756719044756,-683.92,0.00013972,2]
[382719209,1756719044766,-1217.44,0.00013972,2]
[382719210,1756719044775,-480.0,0.00013972,2]
[382719211,1756719044785,-738.59,0.00013972,2]
[382719212,1756719044794,-634.62,0.00013972,2]
[382719213,1756719044803,-480.0,0.00013972,2]
[382719214,1756719044812,-480.0,0.00013972,2]
[382719215,1756719044822,-480.0,0.00013972,2]
[382719216,1756719044831,-492.5,0.00013972,2]
[382719217,1756719044840,-480.0,0.00013972,2]
[382719218,1756719044851,-480.0,0.00013972,2]
[382719219,1756719044860,-480.0,0.00013972,2]
[382719220,1756719044869,-480.0,0.00013972,2]
[382719221,1756719044878,-480.0,0.00013972,2]
[382719222,1756719044887,-480.0,0.00013972,2]
[382719223,1756719044896,-480.0,0.00013972,2]
[382719224,1756719044906,-482.12818552,0.00013972,2]
[382719225,1756719044915,-480.0,0.00013972,2]
[382719226,1756719044925,-480.0,0.00013972,2]
[382719227,1756719044934,-1991.25,0.00013972,2]
[382719228,1756719044943,-480.0,0.00013972,2]
[382719229,1756719044953,-480.0,0.00013972,2]
[382719230,1756719044962,-480.0,0.00013972,2]
[382719231,1756719044971,-707.25,0.00013972,2]
[382719232,1756719044981,-480.0,0.00013972,2]
[382719233,1756719044990,-1376.3,0.00013972,2]
[382719234,1756719045000,-480.0,0.00013972,2]
[382719235,1756719045010,-480.0,0.00013972,2]
[382719236,1756719045019,-918.69,0.00013972,2]
[382719237,1756719045031,-480.0,0.00013972,2]
[382719238,1756719045041,-480.0,0.00013972,2]
[382719239,1756719045051,-601.43,0.00013972,2]
[382719240,1756719045060,-480.0,0.00013972,2]
[382719241,1756719045070,-480.0,0.00013972,2]
[382719242,1756719045079,-480.0,0.00013972,2]
[382719243,1756719045088,-378.84334787,0.00013972,2]
[382719244,1756719045097,-973.19,0.00013972,2]
[382719245,1756719045106,-600.16,0.00013972,2]
[382719246,1756719045116,-480.0,0.00013972,2]
[382719247,1756719045125,-734.35,0.00013972,2]
[382719248,1756719045135,-480.0,0.00013972,2]
[382719249,1756719045144,-533.48,0.00013972,2]
[382719250,1756719045153,-713.84,0.00013972,2]
[382719251,1756719045163,-480.0,0.00013972,2]
[382719252,1756719045172,-480.0,0.00013972,2]
[382719253,1756719045181,-483.39713193,0.00013972,2]
[382719254,1756719045191,-480.0,0.00013972,2]
[382719255,1756719045200,-480.0,0.00013972,2]
[382719256,1756719045210,-518.19,0.00013972,2]
[382719257,1756719045219,-480.0,0.00013972,2]
[382719258,1756719045229,-480.0,0.00013972,2]
[382719259,1756719045238,-480.0,0.00013972,2]
[382719260,1756719045296,-480.0,0.00013972,2]
[382719261,1756719045306,-480.0,0.00013972,2]
[382719262,1756719045316,-596.14,0.00013972,2]
[382719263,1756719045325,-480.0,0.00013972,2]
[382719264,1756719045335,-1044.84,0.00013972,2]
[382719265,1756719045345,-480.0,0.00013972,2]
[382719266,1756719045354,-694.38,0.00013972,2]
[382719267,1756719045365,-480.0,0.00013972,2]
[382719268,1756719045375,-480.0,0.00013972,2]
[382719269,1756719045385,-560.16,0.00013972,2]
[382719270,1756719045395,-480.0,0.00013972,2]
[382719271,1756719045404,-480.0,0.00013972,2]
[382719272,1756719045413,-480.0,0.00013972,2]
[382719273,1756719045423,-686.66,0.00013972,2]
[382719274,1756719045432,-480.0,0.00013972,2]
[382719275,1756719045442,-732.75,0.00013972,2]
[382719276,1756719045451,-1212.2,0.00013972,2]
[382719277,1756719045460,-1020.68,0.00013972,2]
[382719278,1756719045470,-480.0,0.00013972,2]
[382719279,1756719045479,-322.1758387,0.00013972,2]
[382719280,1756719045488,-480.0,0.00013972,2]
[382719281,1756719045497,-527.63,0.00013972,2]
[382719282,1756719045506,-3976.44,0.00013972,2]
[382719283,1756719045515,-489.14,0.00013972,2]
[382719284,1756719045524,-480.0,0.00013972,2]
[382719285,1756719045534,-480.0,0.00013972,2]
[382719286,1756719045543,-526.29,0.00013972,2]
[382719287,1756719045552,-480.0,0.00013972,2]
[382719288,1756719045561,-986.57,0.00013972,2]
[382719289,1756719045570,-480.0,0.00013972,2]
[382719290,1756719045579,-480.0,0.00013972,2]
[382719291,1756719045588,-1543.56,0.00013972,2]
[382719292,1756719045598,-480.0,0.00013972,2]
[382719293,1756719045607,-544.9,0.00013972,2]
[382719294,1756719045616,-480.0,0.00013972,2]
[382719295,1756719045625,-480.0,0.00013972,2]
[382719296,1756719045635,-480.0,0.00013972,2]
[382719297,1756719045644,-480.0,0.00013972,2]
[382719298,1756719045654,-769.17,0.00013972,2]
[382719299,1756719045664,-480.0,0.00013972,2]
[382719300,1756719045674,-480.0,0.00013972,2]
[382719301,1756719045684,-480.0,0.00013972,2]
[382719302,1756719045693,-627.97,0.00013972,2]
[382719303,1756719045703,-1575.39,0.00013972,2]
[382719304,1756719045712,-480.0,0.00013972,2]
[382719305,1756719045721,-633.94,0.00013972,2]
[382719306,1756719045731,-480.0,0.00013972,2]
[382719307,1756719045740,-480.0,0.00013972,2]
[382719308,1756719045750,-273.37644596,0.00013972,2]
[382719309,1756719045760,-480.0,0.00013972,2]
[382719310,1756719045769,-480.0,0.00013972,2]
[382719311,1756719045778,-480.0,0.00013972,2]
[382719312,1756719045788,-480.0,0.00013972,2]
[382719313,1756719045797,-480.0,0.00013972,2]
[382719314,1756719045806,-480.0,0.00013972,2]
[382719315,1756719045816,-4284.25,0.00013972,2]
[382719316,1756719045825,-480.0,0.00013972,2]
[382719317,1756719045834,-631.99,0.00013972,2]
[382719318,1756719045843,-480.0,0.00013972,2]
[382719319,1756719045853,-480.0,0.00013972,2]
[382719320,1756719045862,-480.0,0.00013972,2]
[382719321,1756719045872,-480.0,0.00013972,2]
[382719322,1756719045881,-480.0,0.00013972,2]
[382719323,1756719045890,-480.0,0.00013972,2]
[382719324,1756719045899,-480.0,0.00013972,2]
[382719325,1756719045908,-646.38,0.00013972,2]
[382719326,1756719045919,-480.0,0.00013972,2]
[382719327,1756719045928,-737.42,0.00013972,2]
[382719328,1756719045938,-840.99,0.00013972,2]
[382719329,1756719045947,-480.0,0.00013972,2]
[382719330,1756719045956,-792.58,0.00013972,2]
[382719331,1756719045965,-480.0,0.00013972,2]
[382719332,1756719045974,-783.57,0.00013972,2]
[382719333,1756719045984,-1349.08,0.00013972,2]
[382719334,1756719045993,-480.0,0.00013972,2]
[382719335,1756719046006,-1226.67,0.00013972,2]
[382719336,1756719046015,-864.08,0.00013972,2]
[382719337,1756719046025,-480.0,0.00013972,2]
[382719338,1756719046034,-480.0,0.00013972,2]
[382719339,1756719046043,-480.0,0.00013972,2]
[382719340,1756719046053,-2568.62,0.00013972,2]
[382719341,1756719046062,-605.01,0.00013972,2]
[382719342,1756719046072,-610.08,0.00013972,2]
[382719343,1756719046082,-601.47997319,0.00013972,2]
[382719344,1756719046092,-480.0,0.00013972,2]
[382719345,1756719046102,-480.0,0.00013972,2]
[382719346,1756719046111,-736.79,0.00013972,2]
[382719347,1756719046121,-2842.52,0.00013972,2]
[382719348,1756719046131,-487.47036349,0.00013972,2]
[382719349,1756719046141,-480.0,0.00013972,2]
[382719350,1756719046151,-480.0,0.00013972,2]
[382719351,1756719046161,-634.56,0.00013972,2]
[382719352,1756719046171,-723.45,0.00013972,2]
[382719353,1756719046181,-480.0,0.00013972,2]
[382719354,1756719046191,-480.0,0.00013972,2]
[382719355,1756719046201,-521.66,0.00013972,2]
[382719356,1756719046211,-480.0,0.00013972,2]
[382719357,1756719046221,-1105.94,0.00013972,2]
[382719358,1756719046231,-608.66362371,0.00013972,2]
[382719359,1756719046242,-480.0,0.00013972,2]
[382719360,1756719046252,-480.0,0.00013972,2]
[382719361,1756719046262,-480.0,0.00013972,2]
[382719362,1756719046272,-540.1,0.00013972,2]
[382719363,1756719046282,-480.0,0.00013972,2]
[382719364,1756719046292,-1151.51,0.00013972,2]
[382719365,1756719046302,-480.0,0.00013972,2]
[382719366,1756719046311,-480.0,0.00013972,2]
[382719367,1756719046321,-480.0,0.00013972,2]
[382719368,1756719046331,-480.0,0.00013972,2]
[382719369,1756719046341,-480.0,0.00013972,2]
[382719370,1756719046351,-480.0,0.00013972,2]
[382719371,1756719046360,-608.45,0.00013972,2]
[382719372,1756719046375,-559.88,0.00013972,2]
[382719373,1756719046385,-626.38,0.00013972,2]
[382719374,1756719046394,-942.64,0.00013972,2]
[382719375,1756719046404,-966.2,0.00013972,2]
[382719376,1756719046415,-4215.73,0.00013972,2]
[382719377,1756719046426,-552.86,0.00013972,2]
[382719378,1756719046438,-713.55,0.00013972,2]
[382719379,1756719046448,-864.0,0.00013983,2]
[382719380,1756719046458,-250.0,0.00013998,2]
[382719381,1756719046468,-560.0,0.00014005,2]
[382719382,1756719046478,-9289.05084306,0.00014012,2]
[382719383,1756719046488,-3000.0,0.0001404,2]
[382719384,1756719046498,-160.0,0.00014071,2]
[382719385,1756719046507,-160.0,0.00014071,2]
[382719386,1756719046517,-160.0,0.00014071,2]
[382719387,1756719046527,-160.0,0.00014071,2]
[382719388,1756719046538,-217.44302069,0.00014071,2]
[382719389,1756719046548,-846.10922732,0.00014071,2]
[382719390,1756719046557,-232.83393981,0.00014071,2]
[382719391,1756719046568,-160.0,0.00014071,2]
[382719392,1756719046577,-417.15472785,0.00014071,2]
[382719393,1756719046587,-160.0,0.00014071,2]
[382719394,1756719046597,-160.0,0.00014071,2]
[382719395,1756719046606,-425.82406011,0.00014071,2]
[382719396,1756719046616,-530.14184084,0.00014071,2]
[382719397,1756719046626,-160.0,0.00014078,2]
[382719398,1756719046636,-560.0,0.00014084,2]
[382719399,1756719046645,-151.0,0.000141,2]
[382719400,1756719046655,-160.0,0.00014142,2]
[382719401,1756719046665,-500.0,0.00014158,2]
[382719402,1756719046675,-500.0,0.00014158,2]
[382719403,1756719046685,-500.0,0.00014158,2]
[382719404,1756719046694,-500.0,0.00014189,2]
[382719405,1756719046704,-500.0,0.00014189,2]
[382719406,1756719046714,-390.26996667,0.00014189,2]
[382719407,1756719046726,-500.0,0.00014189,2]
[382719408,1756719046736,-500.0,0.00014189,2]
[382719409,1756719046746,-409.94293439,0.00014189,2]
[382719411,1756719046756,-500.0,0.00014189,2]
[382719412,1756719046766,-560.0,0.00014207,2]
[382719413,1756719046776,-500.0,0.00014214,2]
[382719414,1756719046786,-500.0,0.00014214,2]
[382719415,1756719046796,-500.0,0.00014214,2]
[382719416,1756719046806,-500.0,0.00014214,2]
[382719417,1756719046816,-501.40795839,0.0001422,2]
[382719418,1756719046826,-500.0,0.0001422,2]
[382719419,1756719046836,-562.38897382,0.00014221,2]
[382719420,1756719046846,-877.36759086,0.00014221,2]
[382719421,1756719046856,-1000.0,0.00014221,2]
[382719422,1756719046866,-1000.0,0.00014221,2]
[382719423,1756719046876,-714.91044673,0.00014221,2]
[382719424,1756719046886,-1000.0,0.00014221,2]
[382719425,1756719046896,-1000.0,0.00014221,2]
[382719426,1756719046907,-1000.0,0.00014221,2]
[382719427,1756719046916,-1000.0,0.00014221,2]
[382719428,1756719046927,-164.89562748,0.00014221,2]
[382719429,1756719046937,-411.35121586,0.00014221,2]
[382719430,1756719046950,-1000.0,0.00014221,2]
[382719431,1756719046960,-500.0,0.00014231,2]
[382719432,1756719046970,-480.0,0.00014246,2]
[382719433,1756719046980,-435.60249108,0.00014246,2]
[382719434,1756719046991,-441.88219619,0.00014246,2]
[382719435,1756719047001,-480.0,0.00014246,2]
[382719436,1756719047012,-480.0,0.00014246,2]
[382719437,1756719047022,-480.0,0.00014246,2]
[382719438,1756719047032,-480.0,0.00014246,2]
[382719439,1756719047042,-480.0,0.00014246,2]
[382719440,1756719047052,-795.18,0.00014246,2]
[382719441,1756719047061,-480.0,0.00014246,2]
[382719442,1756719047073,-480.0,0.00014246,2]
[382719443,1756719047086,-480.0,0.00014246,2]
[382719444,1756719047096,-480.0,0.00014246,2]
[382719445,1756719047105,-480.0,0.00014246,2]
[382719446,1756719047116,-480.0,0.00014246,2]
[382719447,1756719047126,-833.27,0.00014246,2]
[382719448,1756719047136,-480.0,0.00014246,2]
[382719449,1756719047146,-480.0,0.00014246,2]
[382719450,1756719047156,-480.0,0.00014246,2]
[382719451,1756719047166,-480.0,0.00014246,2]
[382719452,1756719047177,-480.0,0.00014246,2]
[382719453,1756719047187,-480.0,0.00014246,2]
[382719454,1756719047197,-480.0,0.00014246,2]
[382719455,1756719047211,-480.0,0.00014246,2]
[382719456,1756719047224,-480.0,0.00014246,2]
[382719457,1756719047238,-480.0,0.00014246,2]
[382719458,1756719047251,-480.0,0.00014246,2]
[382719459,1756719047263,-480.0,0.00014246,2]
[382719460,1756719047274,-480.0,0.00014246,2]
[382719461,1756719047285,-480.0,0.00014246,2]
[382719462,1756719047297,-480.0,0.00014246,2]
[382719463,1756719047309,-480.0,0.00014246,2]
[382719464,1756719047320,-789.77,0.00014246,2]
[382719465,1756719047332,-480.0,0.00014246,2]
[382719466,1756719047346,-480.0,0.00014246,2]
[382719467,1756719047358,-480.0,0.00014246,2]
[382719468,1756719047375,-480.0,0.00014246,2]
[382719469,1756719047394,-480.0,0.00014246,2]
[382719470,1756719047408,-858.29,0.00014246,2]
[382719471,1756719047420,-879.79,0.00014246,2]
[382719472,1756719047432,-480.0,0.00014246,2]
[382719473,1756719047446,-480.0,0.00014246,2]
[382719474,1756719047458,-480.0,0.00014246,2]
[382719475,1756719047469,-480.0,0.00014246,2]
[382719476,1756719047480,-251.02172677,0.00014246,2]
[382719477,1756719047492,-711.9,0.00014246,2]
[382719478,1756719047505,-480.0,0.00014246,2]
[382719479,1756719047517,-480.0,0.00014246,2]
[382719480,1756719047529,-568.51,0.00014246,2]
[382719481,1756719047540,-480.0,0.00014246,2]
[382719482,1756719047550,-763.81,0.00014246,2]
[382719483,1756719047561,-480.0,0.00014246,2]
[382719484,1756719047573,-480.0,0.00014246,2]
[382719485,1756719047583,-480.0,0.00014246,2]
[382719486,1756719047595,-480.0,0.00014246,2]
[382719487,1756719047607,-613.69,0.00014246,2]
[382719488,1756719047620,-480.0,0.00014246,2]
[382719489,1756719047631,-700.7,0.00014246,2]
[382719490,1756719047643,-480.0,0.00014246,2]
[382719491,1756719047656,-480.0,0.00014246,2]
[382719492,1756719047669,-480.0,0.00014246,2]
[382719493,1756719047681,-764.0,0.00014246,2]
[382719494,1756719047694,-730.48,0.00014246,2]
[382719495,1756719047704,-480.0,0.00014246,2]
[382719496,1756719047714,-480.0,0.00014246,2]
[382719497,1756719047725,-480.0,0.00014246,2]
[382719498,1756719047735,-480.0,0.00014246,2]
[382719499,1756719047747,-480.0,0.00014246,2]
[382719500,1756719047758,-857.62,0.00014246,2]
[382719501,1756719047772,-480.0,0.00014246,2]
[382719502,1756719047785,-480.0,0.00014246,2]
[382719503,1756719047795,-480.0,0.00014246,2]
[382719504,1756719047805,-480.0,0.00014246,2]
[382719505,1756719047816,-480.0,0.00014246,2]
[382719506,1756719047827,-480.0,0.00014246,2]
[382719507,1756719047839,-480.0,0.00014246,2]
[382719508,1756719047851,-480.0,0.00014246,2]
[382719509,1756719047862,-514.67,0.00014246,2]
[382719510,1756719047873,-480.0,0.00014246,2]
[382719511,1756719047884,-480.0,0.00014246,2]
[382719512,1756719047895,-480.0,0.00014246,2]
[382719513,1756719047905,-480.0,0.00014246,2]
[382719514,1756719047916,-734.2,0.00014246,2]
[382719515,1756719047927,-480.0,0.00014246,2]
[382719516,1756719047937,-407.6513577,0.00014246,2]
[382719517,1756719047948,-483.77,0.00014246,2]
[382719518,1756719047959,-798.99,0.00014246,2]
[382719519,1756719047970,-480.0,0.00014246,2]
[382719520,1756719047981,-480.0,0.00014246,2]
[382719521,1756719047991,-480.0,0.00014246,2]
[382719522,1756719048002,-480.0,0.00014246,2]
[382719523,1756719048013,-480.0,0.00014246,2]
[382719524,1756719048023,-480.0,0.00014246,2]
[382719525,1756719048033,-480.0,0.00014246,2]
[382719526,1756719048044,-486.18,0.00014246,2]
[382719527,1756719048054,-480.0,0.00014246,2]
[382719528,1756719048066,-765.0,0.00014246,2]
[382719529,1756719048076,-480.0,0.00014246,2]
[382719530,1756719048087,-480.0,0.00014246,2]
[382719531,1756719048098,-670.38,0.00014246,2]
[382719532,1756719048108,-731.06,0.00014246,2]
[382719533,1756719048119,-480.0,0.00014246,2]
[382719534,1756719048131,-736.62,0.00014246,2]
[382719535,1756719048142,-569.73,0.00014246,2]
[382719536,1756719048152,-480.0,0.00014246,2]
[382719537,1756719048163,-480.0,0.00014246,2]
[382719538,1756719048175,-480.0,0.00014246,2]
[382719539,1756719048186,-969.25,0.00014246,2]
[382719540,1756719048197,-480.0,0.00014246,2]
[382719541,1756719048208,-647.48,0.00014246,2]
[382719542,1756719048219,-762.24,0.00014246,2]
[382719543,1756719048230,-480.0,0.00014246,2]
[382719544,1756719048241,-480.0,0.00014246,2]
[382719545,1756719048252,-480.0,0.00014246,2]
[382719546,1756719048263,-998.76,0.00014246,2]
[382719547,1756719048275,-480.0,0.00014246,2]
[382719549,1756719048286,-480.0,0.00014246,2]
[382719550,1756719048297,-480.0,0.00014246,2]
[382719551,1756719048309,-480.0,0.00014246,2]
[382719552,1756719048320,-480.0,0.00014246,2]
[382719553,1756719048331,-480.0,0.00014246,2]
[382719554,1756719048346,-480.0,0.00014246,2]